bitfinex-derivatives/quotes_BNBF0:USTF0_20250305
["timestamp","ask_amount","ask_price","bid_price","bid_amount"]
[1741146919250,0.9941148,589.18,587.65,0.34033863]
[1741146919449,0.31214396,589.17,587.65,0.34033863]
[1741146919644,0.31214396,589.16,587.65,0.34033863]
[1741146919944,0.31214396,589.15,587.65,0.34033863]
[1741146920151,0.31214396,589.14,587.65,0.34033863]
[1741146920447,0.31214396,589.13,587.65,0.34033863]
[1741146920650,0.31214396,589.12,587.65,0.34033863]
[1741146920848,0.31214396,589.11,587.65,0.34033863]
[1741146921050,0.31214396,589.1,587.65,0.34033863]
[1741146921248,0.31214396,589.09,587.65,0.34033863]
[1741146921447,0.31214396,589.08,587.65,0.34033863]
[1741146921648,0.31214396,589.42,587.65,0.34033863]
[1741146921847,0.31214396,589.41,587.65,0.34033863]
[1741146922147,0.31214396,589.4,587.65,0.34033863]
[1741146922343,0.31214396,589.39,587.65,0.34033863]
[1741146922548,0.31214396,589.38,587.65,0.34033863]
[1741146922747,0.31214396,589.37,587.65,0.34033863]
[1741146923051,0.31214396,589.36,587.65,0.34033863]
[1741146923343,0.99266751,589.44,587.65,0.34033863]
[1741146923344,0.33936267,589.34,587.65,0.34033863]
[1741146923544,0.31214396,589.33,587.65,0.34033863]
[1741146923749,0.33937995,589.31,587.65,0.34033863]
[1741146923945,0.31214396,589.3,587.65,0.34033863]
[1741146924147,0.31214396,589.29,587.65,0.34033863]
[1741146924347,0.31214396,589.28,587.65,0.34033863]
[1741146924545,0.31214396,589.27,587.65,0.34033863]
[1741146924750,0.31214396,589.3,587.65,0.34033863]
[1741146924949,0.31214396,589.29,587.65,0.34033863]
[1741146925145,0.31214396,589.28,587.65,0.34033863]
[1741146925350,0.31214396,589.27,587.65,0.34033863]
[1741146925650,0.33937995,589.31,587.65,0.34033863]
[1741146925651,0.31214396,589.26,587.65,0.34033863]
[1741146925845,0.33940874,589.26,587.65,0.34033863]
[1741146926652,0.31227681,589.25,587.65,0.34033863]
[1741146928357,0.33942027,589.24,587.65,0.34033863]
[1741146928553,0.31227681,589.23,587.65,0.34033863]
[1741146928852,0.33942027,589.24,587.65,0.34033863]
[1741146929051,0.31224557,589.23,587.65,0.34033863]
[1741146929450,0.33943179,589.22,587.65,0.34033863]
[1741146929655,0.31224557,589.21,587.65,0.34033863]
[1741146930057,0.33943179,589.22,587.65,0.34033863]
[1741146931157,0.31236003,589.21,587.65,0.34033863]
[1741146931455,0.33944907,589.19,587.65,0.34033863]
[1741146931656,0.31236003,589.18,587.65,0.34033863]
[1741146932055,0.33946635,589.16,587.65,0.34033863]
[1741146934862,0.31233678,589.15,587.65,0.34033863]
[1741146935763,0.33947788,589.14,587.65,0.34033863]
[1741146935958,0.31229541,589.13,587.65,0.34033863]
[1741146936155,0.3394894,589.12,587.65,0.34033863]
[1741146936356,0.31229541,589.11,587.65,0.34033863]
[1741146936561,0.33950093,589.1,587.65,0.34033863]
[1741146936761,0.31229541,589.09,587.65,0.34033863]
[1741146936962,0.33951246,589.08,587.65,0.34033863]
[1741146937161,0.31229541,589.07,587.65,0.34033863]
[1741146937362,0.33952398,589.06,587.65,0.34033863]
[1741146937560,0.31231019,589.05,587.65,0.34033863]
[1741146937767,0.33953551,589.04,587.65,0.34033863]
[1741146937962,0.33953551,589.04,587.65,1.60501059]
[1741146937963,0.31231019,589.03,587.65,1.60501059]
[1741146938263,0.65185232,589.02,587.65,1.60501059]
[1741146938463,0.65185808,589.01,587.65,1.60501059]
[1741146938663,0.65186385,589.0,587.65,1.60501059]
[1741146938863,2.84127799,589.34,587.65,1.60501059]
[1741146938864,0.65186961,588.99,587.65,1.60501059]
[1741146939065,0.31230528,588.98,587.65,1.60501059]
[1741146939765,0.31230528,588.98,587.66,1.26467196]
[1741146939965,0.31230528,588.98,587.67,0.34032705]
[1741146941765,0.31230528,588.98,587.72,1.26467196]
[1741146941965,0.31230528,588.98,587.73,0.34029231]
[1741146942576,0.31230357,588.97,587.73,0.34029231]
[1741146942766,0.31230357,588.98,587.73,0.34029231]
[1741146943766,0.31230357,588.98,587.75,1.26467196]
[1741146943969,0.31230357,588.98,587.76,0.34027494]
[1741146944272,0.33956433,588.99,587.76,0.34027494]
[1741146944468,0.31229291,588.98,587.76,0.34027494]
[1741146945974,0.31229291,588.98,587.8,1.26467196]
[1741146946170,0.31229291,588.98,587.81,0.34024599]
[1741146947673,0.31229291,588.98,587.88,1.26467196]
[1741146948074,0.31229219,588.97,587.88,1.26467196]
[1741146948273,0.31229219,588.96,587.88,1.26467196]
[1741146948570,0.31229219,588.95,587.88,1.26467196]
[1741146948770,0.31229219,588.98,587.88,1.26467196]
[1741146948970,0.31229219,588.97,587.88,1.26467196]
[1741146949275,0.31229219,588.96,587.88,1.26467196]
[1741146949476,0.31229219,588.98,587.88,1.26467196]
[1741146949678,0.31229219,588.98,587.84,1.26467196]
[1741146949875,0.33956433,588.99,587.84,1.26467196]
[1741146950773,0.33956433,588.99,587.85,0.34022284]
[1741146955788,0.33956433,588.99,587.85,1.6048948]
[1741146958590,0.33956433,588.99,587.96,1.26467196]
[1741146960191,0.33956433,588.99,588.15,1.26467196]
[1741146962587,0.33956433,588.99,588.2,1.26467196]
[1741146964286,0.33956433,588.99,588.31,1.26467196]
[1741146966493,0.33956433,588.99,588.15,1.26467196]
[1741146968890,0.33956433,588.99,587.66,2.56210536]
[1741146968891,0.33956433,588.99,588.2,1.26467196]
[1741146971693,0.33956433,588.99,588.22,1.26467196]
[1741146974701,0.33956433,588.99,588.31,1.26467196]
[1741146976804,0.33956433,588.99,588.12,1.26467196]
[1741146979207,0.33956433,588.99,588.31,1.26467196]
[1741146980811,0.33956433,588.99,588.35,1.26467196]
[1741146982210,0.33956433,588.99,588.39,1.26467196]
[1741146984509,0.33956433,588.99,588.41,1.26467196]
[1741146987016,0.33956433,588.99,588.43,1.26467196]
[1741146988916,0.33956433,588.99,588.44,1.26467196]
[1741146992013,0.33956433,588.99,588.03,2.56210536]
[1741146992014,0.33956433,588.99,588.41,1.26467196]
[1741146994220,0.33956433,588.99,588.08,1.26467196]
[1741146996720,0.33956433,588.99,588.0,1.26467196]
[1741146999817,0.33956433,588.99,587.96,1.26467196]
[1741147000022,0.31232793,588.98,587.96,1.26467196]
[1741147000723,0.33957586,588.97,587.96,1.26467196]
[1741147000920,0.31232793,588.96,587.96,1.26467196]
[1741147001517,0.33957586,588.97,587.96,1.26467196]
[1741147001723,0.3123364,588.96,587.89,1.26467196]
[1741147003921,0.3123364,588.96,587.91,1.26467196]
[1741147004924,0.33957586,588.97,587.91,1.26467196]
[1741147006126,0.31229901,588.96,587.92,1.26467196]
[1741147006621,0.33957586,588.97,587.92,1.26467196]
[1741147006825,0.31229097,588.96,587.92,1.26467196]
[1741147007228,0.33957586,588.97,587.92,1.26467196]
[1741147007829,0.31227469,588.96,587.92,1.26467196]
[1741147008230,0.31227764,588.95,587.92,1.26467196]
[1741147008428,0.33957586,588.97,587.92,1.26467196]
[1741147008632,0.31227276,588.96,588.03,1.26467196]
[1741147008937,0.33957586,588.97,588.03,1.26467196]
[1741147009328,0.31226253,588.96,588.03,1.26467196]
[1741147009526,0.33957586,588.97,588.03,1.26467196]
[1741147010933,0.33957586,588.97,588.11,1.26467196]
[1741147013739,0.33957586,588.97,588.14,1.26467196]
[1741147018144,0.33957586,588.97,588.07,1.25490875]
[1741147018145,0.33957586,588.97,588.07,1.26467196]
[1741147020145,0.33957586,588.97,587.85,0.34022284]
[1741147020146,0.33957586,588.97,588.11,1.26467196]
[1741147022443,0.33957586,588.97,587.85,0.34022284]
[1741147024148,0.33957586,588.97,588.01,1.26467196]
[1741147026353,0.33957586,588.97,588.11,1.26467196]
[1741147029551,0.33957586,588.97,587.85,0.34022284]
[1741147029552,0.33957586,588.97,588.1,1.26467196]
[1741147031753,0.33957586,588.97,588.07,1.26467196]
[1741147033958,0.33957586,588.97,588.11,1.26467196]
[1741147035461,4.16884719,589.51,588.11,1.26467196]
[1741147035662,2.8190261,589.5,588.11,1.26467196]
[1741147035963,4.1265082,589.49,588.11,1.26467196]
[1741147036157,0.33928783,589.47,588.11,1.26467196]
[1741147036365,0.31217141,589.46,588.11,1.26467196]
[1741147036756,0.33929934,589.45,588.11,1.26467196]
[1741147036958,0.31217141,589.44,588.11,1.26467196]
[1741147037463,0.33931085,589.43,588.11,1.26467196]
[1741147037663,0.31217141,589.42,588.11,1.26467196]
[1741147037859,0.33932237,589.41,588.11,1.26467196]
[1741147038063,0.31217141,589.4,588.11,1.26467196]
[1741147038263,0.33933388,589.39,588.11,1.26467196]
[1741147038459,0.31217141,589.38,588.11,1.26467196]
[1741147038665,0.3393454,589.37,588.11,1.26467196]
[1741147038964,0.31217141,589.36,588.11,1.26467196]
[1741147039165,0.65155732,589.35,588.14,1.26467196]
[1741147039459,0.65156308,589.34,588.14,1.26467196]
[1741147039661,0.33936843,589.33,588.14,1.26467196]
[1741147041265,0.33936843,589.33,587.91,1.26467196]
[1741147041463,1.52753784,589.33,587.92,0.34018233]
[1741147042260,0.33936843,589.33,587.92,0.34018233]
[1741147043559,0.31218818,589.32,587.96,1.26467196]
[1741147043763,0.31218818,589.32,587.97,0.3401534]
[1741147043967,0.33937995,589.31,587.97,0.3401534]
[1741147045669,0.33937995,589.31,588.0,1.26467196]
[1741147047768,0.31217572,589.3,588.03,1.26467196]
[1741147049070,0.33939147,589.29,588.03,1.26467196]
[1741147049268,0.31217572,589.28,588.03,1.26467196]
[1741147049663,0.33940299,589.27,588.03,1.26467196]
[1741147049869,0.31217572,589.26,588.03,1.26467196]
[1741147050066,0.31217572,589.26,588.35,1.26467196]
[1741147051871,0.31217572,589.26,588.42,1.26467196]
[1741147052874,0.33940299,589.27,588.42,1.26467196]
[1741147053074,0.31217,589.26,588.42,1.26467196]
[1741147053470,0.31217,589.26,588.38,1.26467196]
[1741147055473,0.31217,589.26,588.42,1.26467196]
[1741147056273,0.33940299,589.27,588.42,1.26467196]
[1741147056474,0.31216369,589.26,588.42,1.26467196]
[1741147057573,0.31216369,589.25,588.42,1.26467196]
[1741147057773,0.31216369,589.58,588.43,1.26467196]
[1741147057970,1.00984266,589.59,588.43,1.26467196]
[1741147058174,0.31216753,589.58,588.43,1.26467196]
[1741147058577,2.93641557,589.58,588.43,1.26467196]
[1741147058777,3.16111297,589.57,588.43,1.26467196]
[1741147058974,2.93641557,589.56,588.43,1.26467196]
[1741147059172,2.93641557,589.55,588.43,1.26467196]
[1741147059369,2.93641557,589.54,588.43,1.26467196]
[1741147059579,2.62436086,589.53,588.43,1.26467196]
[1741147059777,0.31216193,589.52,588.43,1.26467196]
[1741147060478,4.47807801,589.53,588.43,1.26467196]
[1741147060679,4.47807801,589.52,588.43,1.26467196]
[1741147060878,4.47807801,589.51,588.43,1.26467196]
[1741147061073,4.47807801,589.5,588.43,1.26467196]
[1741147061272,4.47807801,589.49,588.43,1.26467196]
[1741147061477,4.4780631,589.48,588.43,1.26467196]
[1741147061677,4.47930348,589.47,588.43,1.26467196]
[1741147061877,4.47930348,589.46,588.43,1.26467196]
[1741147062077,4.47930348,589.45,588.43,1.26467196]
[1741147062276,4.47930348,589.44,588.22,1.26467196]
[1741147062475,4.47930348,589.43,588.22,1.26467196]
[1741147062675,4.47930348,589.42,588.22,1.26467196]
[1741147062873,2.93698495,589.41,588.22,1.26467196]
[1741147063074,2.93698506,589.4,588.22,1.26467196]
[1741147063277,1.97303598,589.39,588.22,1.26467196]
[1741147063472,1.27609621,589.39,588.22,1.26467196]
[1741147063671,1.18816941,589.39,588.22,1.26467196]
[1741147063872,2.15240429,589.39,588.22,1.26467196]
[1741147064074,1.18816941,589.39,588.22,1.26467196]
[1741147064281,4.16908002,589.63,588.16,1.26467196]
[1741147064481,1.18816941,589.65,588.16,1.26467196]
[1741147064482,4.48122612,589.62,588.16,1.26467196]
[1741147064681,5.66939519,589.61,588.16,1.26467196]
[1741147064878,4.48122578,589.6,588.16,1.26467196]
[1741147065076,4.48122578,589.59,588.16,1.26467196]
[1741147065381,4.48122578,589.58,588.16,1.26467196]
[1741147065574,5.66939519,589.57,588.16,1.26467196]
[1741147065778,4.48122578,589.56,588.16,1.26467196]
[1741147065980,5.66939519,589.55,588.16,1.26467196]
[1741147066282,5.66939519,589.54,588.16,1.26467196]
[1741147066477,4.48122578,589.53,588.16,1.26467196]
[1741147066675,4.48122578,589.52,588.16,1.26467196]
[1741147066879,4.48122578,589.51,588.16,1.26467196]
[1741147067080,4.48122578,589.5,588.16,1.26467196]
[1741147067380,4.48122578,589.49,588.16,1.26467196]
[1741147067582,4.48122578,589.48,588.16,1.26467196]
[1741147067783,4.48122578,589.47,588.16,1.26467196]
[1741147067983,4.48122578,589.46,588.16,1.26467196]
[1741147068184,4.48122578,589.45,588.16,1.26467196]
[1741147068383,4.48122805,589.44,588.16,1.26467196]
[1741147068585,4.48122805,589.43,588.16,1.26467196]
[1741147068883,4.48122805,589.42,588.16,1.26467196]
[1741147069180,4.48122805,589.41,588.16,1.26467196]
[1741147069386,4.48122805,589.4,588.16,1.26467196]
[1741147069583,4.16908002,589.39,588.16,1.26467196]
[1741147069884,4.48122687,589.38,588.16,1.26467196]
[1741147070084,4.17109494,589.37,588.16,1.26467196]
[1741147070280,2.62632804,589.36,588.16,1.26467196]
[1741147070481,0.31214719,589.35,588.16,1.26467196]
[1741147070677,4.48333903,589.37,588.16,1.26467196]
[1741147070985,4.48333903,589.36,588.16,1.26467196]
[1741147071185,5.67150844,589.35,588.16,1.26467196]
[1741147071386,2.93847523,589.34,588.16,1.26467196]
[1741147071585,1.97425803,589.33,588.16,1.26467196]
[1741147071785,0.31214997,589.32,588.16,1.26467196]
[1741147072182,0.31214997,589.31,588.16,1.26467196]
[1741147072386,0.31214997,589.32,588.16,1.26467196]
[1741147072587,0.31214997,589.31,588.16,1.26467196]
[1741147072783,0.31214997,589.32,588.16,1.26467196]
[1741147072984,0.31214997,589.31,588.16,1.26467196]
[1741147073182,0.31214997,589.3,588.16,1.26467196]
[1741147073381,0.31214997,589.29,588.31,1.26467196]
[1741147073585,0.31214997,589.28,588.31,1.26467196]
[1741147073786,4.48334998,589.43,588.31,1.26467196]
[1741147073990,4.48334998,589.42,588.31,1.26467196]
[1741147074187,4.48334998,589.41,588.31,1.26467196]
[1741147074390,4.48334998,589.4,588.31,1.26467196]
[1741147074587,4.48334998,589.39,588.31,1.26467196]
[1741147074787,4.48334998,589.38,588.31,1.26467196]
[1741147074992,5.67151939,589.37,588.31,1.26467196]
[1741147075191,4.48334998,589.36,588.31,1.26467196]
[1741147075488,5.67151939,589.35,588.31,1.26467196]
[1741147075690,5.67151939,589.35,587.71,2.56210536]
[1741147075691,0.31214997,589.34,588.38,1.26467196]
[1741147076293,0.31214997,589.55,588.38,1.26467196]
[1741147076493,0.31214997,589.54,588.38,1.26467196]
[1741147076795,0.31214997,589.53,588.38,1.26467196]
[1741147076995,0.31214997,589.55,588.38,1.26467196]
[1741147077189,0.31214997,589.54,588.38,1.26467196]
[1741147078594,0.31214997,589.54,587.85,2.56210536]
[1741147078595,0.31214997,589.54,588.24,1.26467196]
[1741147078794,0.31214997,589.53,588.24,1.26467196]
[1741147078995,0.31214997,589.52,588.24,1.26467196]
[1741147079192,0.31214997,589.55,588.24,1.26467196]
[1741147079393,0.31214997,589.54,588.24,1.26467196]
[1741147079595,1.01235454,589.57,588.24,1.26467196]
[1741147079796,0.31215841,589.56,588.24,1.26467196]
[1741147079990,1.32476419,589.56,588.24,1.26467196]
[1741147080195,0.31215841,589.55,588.24,1.26467196]
[1741147080992,0.31215841,589.54,588.24,1.26467196]
[1741147081299,0.31215841,589.54,587.59,2.56210536]
[1741147081300,0.31215841,589.53,588.26,1.26467196]
[1741147081499,0.31215841,589.52,588.26,1.26467196]
[1741147081799,0.31215841,589.51,588.26,1.26467196]
[1741147082000,0.31215841,589.56,588.26,1.26467196]
[1741147082200,0.31213815,589.55,588.26,1.26467196]
[1741147082401,0.31213815,589.54,588.26,1.26467196]
[1741147082594,0.31213815,589.53,588.26,1.26467196]
[1741147082799,0.31213815,589.52,588.26,1.26467196]
[1741147082998,0.31213815,589.51,588.26,1.26467196]
[1741147083303,0.31213815,589.5,588.26,1.26467196]
[1741147083500,0.31213815,589.64,588.26,1.26467196]
[1741147083906,0.31213815,589.65,588.26,1.26467196]
[1741147084105,1.01282157,589.66,588.26,1.26467196]
[1741147084106,0.31209955,589.64,588.26,1.26467196]
[1741147084309,0.31209955,589.63,588.55,1.26467196]
[1741147084505,0.31209955,589.65,588.55,1.26467196]
[1741147084702,0.31209955,589.64,588.55,1.26467196]
[1741147085002,1.50026896,589.64,588.55,1.26467196]
[1741147085207,0.31209955,589.63,588.55,1.26467196]
[1741147085602,1.97791329,589.63,588.55,1.26467196]
[1741147085808,0.31209955,589.62,588.55,1.26467196]
[1741147086103,2.46662698,589.62,588.55,1.26467196]
[1741147086302,0.31209955,589.61,588.55,1.26467196]
[1741147086503,1.32492112,589.61,588.58,1.26467196]
[1741147086709,0.31209955,589.6,588.58,1.26467196]
[1741147087111,1.97791329,589.6,588.58,1.26467196]
[1741147087304,0.31209955,589.59,588.58,1.26467196]
[1741147087509,0.31209955,589.58,588.58,1.26467196]
[1741147087710,4.48845293,589.59,588.58,1.26467196]
[1741147087906,4.48845293,589.58,588.58,1.26467196]
[1741147088105,5.67662234,589.57,588.58,1.26467196]
[1741147088310,4.48845293,589.56,588.58,1.26467196]
[1741147088504,4.48845293,589.56,588.34,1.5058905]
[1741147088505,4.48845293,589.55,588.56,1.26467196]
[1741147088709,5.67662234,589.54,588.56,1.26467196]
[1741147089012,4.48845293,589.53,588.56,1.26467196]
[1741147089212,0.31209955,589.52,588.56,1.26467196]
[1741147089413,0.31209955,589.53,588.56,1.26467196]
[1741147089607,0.31209955,589.52,588.56,1.26467196]
[1741147089805,0.3121021,589.51,588.56,1.26467196]
[1741147090013,0.3121021,589.5,588.56,1.26467196]
[1741147090206,0.3121021,589.6,588.56,1.26467196]
[1741147090406,0.3121021,589.59,588.56,1.26467196]
[1741147090710,0.3121021,589.58,588.57,1.26467196]
[1741147090910,0.3121021,589.57,588.57,1.26467196]
[1741147091110,0.3121021,589.56,588.57,1.26467196]
[1741147091307,0.3121021,589.55,588.57,1.26467196]
[1741147091512,0.3121021,589.54,588.57,1.26467196]
[1741147091711,0.3121021,589.53,588.57,1.26467196]
[1741147091911,0.33925905,589.52,588.57,1.26467196]
[1741147092112,0.3121021,589.51,588.57,1.26467196]
[1741147093114,0.33927056,589.5,588.57,1.26467196]
[1741147093314,0.3121021,589.49,588.57,1.26467196]
[1741147093715,0.33928207,589.48,588.57,1.26467196]
[1741147094019,0.3121021,589.47,588.57,1.26467196]
[1741147095015,0.33929359,589.46,588.57,1.26467196]
[1741147095217,0.3121021,589.45,588.57,1.26467196]
[1741147096320,0.3121021,589.45,588.58,1.26467196]
[1741147097622,0.31208877,589.44,588.58,1.26467196]
[1741147097819,0.31208877,589.43,588.58,1.26467196]
[1741147098015,0.31208877,589.42,588.58,1.26467196]
[1741147098219,0.31208877,589.45,588.57,1.26467196]
[1741147098417,0.31208877,589.44,588.57,1.26467196]
[1741147098619,0.31208877,589.45,588.57,1.26467196]
[1741147098819,0.31208877,589.44,588.57,1.26467196]
[1741147099019,0.31208877,589.43,588.57,1.26467196]
[1741147099221,0.31208321,589.42,588.57,1.26467196]
[1741147099417,0.31208321,589.41,588.57,1.26467196]
[1741147099621,0.31208321,589.4,588.57,1.26467196]
[1741147099820,0.31208321,589.45,588.57,1.26467196]
[1741147100218,0.31208321,589.45,588.61,1.26467196]
[1741147100918,0.33929359,589.46,588.61,1.26467196]
[1741147101118,0.31207472,589.45,588.61,1.26467196]
[1741147102124,0.65137406,589.45,588.62,1.26467196]
[1741147102327,0.31207472,589.44,588.62,1.26467196]
[1741147103423,0.33931085,589.43,588.62,1.26467196]
[1741147103626,0.31207472,589.42,588.62,1.26467196]
[1741147103822,0.33932237,589.41,588.62,1.26467196]
[1741147104026,0.31207472,589.4,588.62,1.26467196]
[1741147104326,0.33933388,589.39,588.62,1.26467196]
[1741147104530,0.31207472,589.38,588.62,1.26467196]
[1741147104730,0.3393454,589.37,588.55,1.26467196]
[1741147105120,0.31207472,589.36,588.55,1.26467196]
[1741147105324,0.33935691,589.35,588.55,1.26467196]
[1741147105524,0.31207472,589.34,588.55,1.26467196]
[1741147106227,0.31207472,589.34,588.45,1.26467196]
[1741147106228,0.33936843,589.33,588.45,1.26467196]
[1741147106526,0.31207472,589.32,588.45,1.26467196]
[1741147107924,0.31207472,589.32,588.43,1.26467196]
[1741147108326,4.48667647,589.32,588.43,1.26467196]
[1741147108527,1.97634459,589.31,588.43,1.26467196]
[1741147108729,0.31207472,589.3,588.43,1.26467196]
[1741147109121,1.01199793,589.29,588.43,1.26467196]
[1741147109327,0.31207472,589.28,588.43,1.26467196]
[1741147109528,1.32299401,589.28,588.43,1.26467196]
[1741147109824,0.31207472,589.27,588.43,1.26467196]
[1741147110027,1.32299401,589.27,588.43,1.26467196]
[1741147110228,0.31207472,589.26,588.43,1.26467196]
[1741147110428,1.01091929,589.23,588.43,1.26467196]
[1741147110625,1.01091929,589.2,588.43,1.26467196]
[1741147110832,4.4838019,589.28,588.43,1.26467196]
[1741147110833,1.01091929,589.17,588.43,1.26467196]
[1741147111032,1.32299401,589.16,588.02,1.26467196]
[1741147111232,0.31207472,589.15,588.02,1.26467196]
[1741147111431,0.31207472,589.14,588.02,1.26467196]
[1741147111627,1.01091929,589.16,588.02,1.26467196]
[1741147111831,0.31207472,589.15,588.02,1.26467196]
[1741147112531,1.01091929,589.13,588.02,1.26467196]
[1741147112829,0.31207472,589.12,588.02,1.26467196]
[1741147113030,0.31207472,589.11,588.02,1.26467196]
[1741147113632,0.31207472,589.1,587.69,1.26467196]
[1741147113836,0.31207472,589.09,587.69,1.26467196]
[1741147114033,0.31207472,589.08,587.69,1.26467196]
[1741147114338,0.31207472,589.07,587.69,1.26467196]
[1741147114635,0.31207472,589.06,587.69,1.26467196]
[1741147114832,0.31207472,589.05,587.69,1.26467196]
[1741147115035,4.15288404,589.09,587.69,1.26467196]
[1741147115036,0.31207472,589.04,587.69,1.26467196]
[1741147115227,0.31207472,589.03,587.69,1.26467196]
[1741147115428,0.31207472,589.02,587.69,1.26467196]
[1741147115632,1.00525705,589.07,587.69,1.26467196]
[1741147115633,0.31207472,589.01,587.69,1.26467196]
[1741147115833,0.31207472,589.0,587.69,1.26467196]
[1741147116029,0.31207472,588.99,587.69,1.26467196]
[1741147116234,1.00525705,589.07,587.69,1.26467196]
[1741147116531,0.31247502,589.06,587.69,1.26467196]
[1741147116730,0.31247502,589.05,587.69,1.26467196]
[1741147116930,0.31247502,589.04,587.69,1.26467196]
[1741147117128,0.33954704,589.02,587.69,1.26467196]
[1741147117329,0.31247502,589.01,587.33,1.26467196]
[1741147117529,0.33956433,588.99,587.34,0.34051826]
[1741147117730,0.31247502,588.98,587.34,0.34051826]
[1741147117934,0.33958163,588.96,587.34,0.34051826]
[1741147118131,0.31248362,588.95,587.34,0.34051826]
[1741147118333,0.33959893,588.93,587.34,0.34051826]
[1741147118535,0.31248362,588.92,587.34,0.34051826]
[1741147118735,0.33961623,588.9,587.34,0.34051826]
[1741147119035,0.31248362,588.89,587.34,0.34051826]
[1741147119232,0.33962776,588.88,587.34,0.34051826]
[1741147119635,0.31248986,588.87,587.34,0.34051826]
[1741147120938,0.33964507,588.85,587.34,0.34051826]
[1741147121140,0.31248986,588.84,587.34,0.34051826]
[1741147123041,0.33966237,588.82,587.34,0.34051826]
[1741147123336,0.31248986,588.81,587.34,0.34051826]
[1741147123541,0.33967968,588.79,587.34,0.34051826]
[1741147123742,0.31248986,588.78,587.34,0.34051826]
[1741147126443,0.33967968,588.79,587.34,0.34051826]
[1741147126640,0.31253685,588.78,587.34,0.34051826]
[1741147126839,0.33969122,588.77,587.34,0.34051826]
[1741147127038,0.31253685,588.76,587.34,0.34051826]
[1741147127641,0.31253685,588.75,587.34,0.34051826]
[1741147127836,0.31253685,588.74,587.34,0.34051826]
[1741147128040,0.33969122,588.77,587.34,0.34051826]
[1741147128240,0.31254568,588.76,587.34,0.34051826]
[1741147128445,0.33969122,588.77,587.34,0.34051826]
[1741147128638,0.31255072,588.76,587.34,0.34051826]
[1741147128842,0.31255072,588.75,587.34,0.34051826]
[1741147129043,0.31255072,588.74,587.34,0.34051826]
[1741147129342,0.31255072,588.73,587.34,0.34051826]
[1741147129542,0.31255072,588.72,587.34,0.34051826]
[1741147129742,0.33969122,588.77,587.34,0.34051826]
[1741147130045,0.31257179,588.76,587.34,0.34051826]
[1741147130242,0.31257179,588.75,587.34,0.34051826]
[1741147130442,0.31257179,588.74,587.34,0.34051826]
[1741147130638,0.31257179,588.76,587.34,0.34051826]
[1741147131739,4.41529219,588.76,587.34,0.34051826]
[1741147131940,1.9487074,588.75,587.34,0.34051826]
[1741147132243,0.31257179,588.74,587.34,0.34051826]
[1741147132445,0.31257179,588.73,587.34,0.34051826]
[1741147132644,0.99467511,588.68,586.73,1.26467196]
[1741147132841,0.31257179,588.67,586.75,0.34086067]
[1741147133045,0.31257179,588.66,586.75,0.34086067]
[1741147133240,0.31257179,588.65,586.75,0.34086067]
[1741147133441,0.31257179,588.64,586.75,0.34086067]
[1741147133644,1.3072469,588.63,586.75,0.34086067]
[1741147133843,0.31257179,588.62,586.75,0.34086067]
[1741147134040,0.31257179,588.61,586.75,0.34086067]
[1741147134241,0.31257179,588.6,586.75,0.34086067]
[1741147134446,0.31257179,588.59,586.75,0.34086067]
[1741147134646,0.31257179,588.58,586.75,0.34086067]
[1741147134842,0.31257179,588.57,586.75,0.34086067]
[1741147135045,0.31257179,588.56,586.75,0.34086067]
[1741147135245,0.31257179,588.55,586.75,0.34086067]
[1741147135546,0.31257179,588.54,586.75,0.34086067]
[1741147135742,2.89295688,588.59,586.75,0.34086067]
[1741147135950,0.99467511,588.67,586.75,0.34086067]
[1741147135951,2.89295688,588.58,586.75,0.34086067]
[1741147136149,2.89295688,588.57,586.75,0.34086067]
[1741147136348,2.89295688,588.56,586.75,0.34086067]
[1741147136549,2.89295688,588.55,586.75,0.34086067]
[1741147136748,2.89295688,588.54,586.75,0.34086067]
[1741147137052,0.31257179,588.53,586.75,0.34086067]
[1741147137252,1.18816941,588.53,586.75,0.34086067]
[1741147137550,0.31257179,588.52,586.75,0.34086067]
[1741147137748,0.33984706,588.5,586.75,0.34086067]
[1741147137951,0.31257179,588.49,586.75,0.34086067]
[1741147138452,0.31279,588.48,586.75,0.34086067]
[1741147138646,0.31279,588.47,586.75,0.34086067]
[1741147138853,0.33984706,588.5,586.75,0.34086067]
[1741147138854,0.33987594,588.45,586.75,0.34086067]
[1741147139150,0.31279,588.44,586.75,0.34086067]
[1741147139347,0.33989327,588.42,586.75,0.34086067]
[1741147139550,0.31279,588.41,586.75,0.34086067]
[1741147139954,0.33989327,588.42,586.75,0.34086067]
[1741147140154,0.31279355,588.41,586.75,0.34086067]
[1741147140856,0.3399106,588.39,586.75,0.34086067]
[1741147141055,0.31279355,588.38,586.75,0.34086067]
[1741147141451,0.33992793,588.36,586.75,0.34086067]
[1741147141652,0.31279355,588.35,586.75,0.34086067]
[1741147141853,0.31279355,588.34,586.75,0.34086067]
[1741147142055,0.31279355,588.33,586.75,0.34086067]
[1741147142250,0.31279355,588.32,586.75,0.34086067]
[1741147142452,0.31279355,588.31,586.75,0.34086067]
[1741147142650,0.31279355,588.3,586.75,0.34086067]
[1741147142850,0.31279355,588.35,586.75,0.34086067]
[1741147143049,0.31279355,588.34,586.75,0.34086067]
[1741147143251,0.31279355,588.33,586.75,0.34086067]
[1741147143554,0.31279355,588.32,586.75,0.34086067]
[1741147143754,0.31279355,588.31,586.75,0.34086067]